[Event "Titled Tuesday Blitz March 29 Early 2022"]
[White "Zhigalko, Sergei"]
[Black "Aditya Mittal"]
[WhiteFideId "13502956"]
[BlackFideId "35042025"]
[WhiteElo "2662"]
[BlackElo "2303"]
[Result "1-0"]
[Round "05"]
[TimeControl "180+1"]
[Date "2022.03.29"]
[WhiteClock "0:00:27"]
[BlackClock "0:00:01"]

1. e4 {[%clk 0:03:00]}  c5 {[%clk 0:03:00]} 2. Nf3 {[%clk 0:03:00]}  d6 {[%clk 0:03:00]} 3. d4 {[%clk 0:02:59]}  cxd4 {[%clk 0:03:01]} 4. Qxd4 {[%clk 0:03:00]}  Nf6 {[%clk 0:03:01]} 5. Nc3 {[%clk 0:03:00]}  Nc6 {[%clk 0:03:01]} 6. Bb5 {[%clk 0:03:00]}  Bd7 {[%clk 0:03:02]} 7. Bxc6 {[%clk 0:03:00]}  Bxc6 {[%clk 0:03:03]} 8. Bg5 {[%clk 0:03:01]}  e6 {[%clk 0:03:04]} 9. O-O-O {[%clk 0:03:01]}  Be7 {[%clk 0:03:04]} 10. Rhe1 {[%clk 0:03:02]}  O-O {[%clk 0:03:02]} 11. Kb1 {[%clk 0:03:02]}  Qa5 {[%clk 0:02:54]} 12. Qd2 {[%clk 0:03:02]}  Qa6 {[%clk 0:02:51]} 13. Nd4 {[%clk 0:03:02]}  Rac8 {[%clk 0:02:51]} 14. f3 {[%clk 0:03:03]}  b5 {[%clk 0:02:49]} 15. g4 {[%clk 0:03:02]}  b4 {[%clk 0:02:31]} 16. Nce2 {[%clk 0:03:02]}  Qb7 {[%clk 0:02:21]} 17. Ng3 {[%clk 0:03:01]}  a5 {[%clk 0:02:20]} 18. Nh5 {[%clk 0:02:51]}  Ne8 {[%clk 0:02:02]} 19. h4 {[%clk 0:02:43]}  a4 {[%clk 0:01:38]} 20. Bxe7 {[%clk 0:02:36]}  Qxe7 {[%clk 0:01:39]} 21. Qxb4 {[%clk 0:02:37]}  Bd7 {[%clk 0:01:38]} 22. g5 {[%clk 0:02:32]}  Nc7 {[%clk 0:01:15]} 23. Ne2 {[%clk 0:01:30]}  Bb5 {[%clk 0:00:43]} 24. Qxd6 {[%clk 0:01:23]}  Qxd6 {[%clk 0:00:35]} 25. Rxd6 {[%clk 0:01:23]}  Bxe2 {[%clk 0:00:16]} 26. Rxe2 {[%clk 0:01:22]}  a3 {[%clk 0:00:16]} 27. Rc6 {[%clk 0:00:51]}  Nb5 {[%clk 0:00:07]} 28. Rxc8 {[%clk 0:00:47]}  Rxc8 {[%clk 0:00:08]} 29. Rd2 {[%clk 0:00:48]}  h6 {[%clk 0:00:02]} 30. Nf4 {[%clk 0:00:40]}  hxg5 {[%clk 0:00:02]} 31. hxg5 {[%clk 0:00:41]}  g6 {[%clk 0:00:02]} 32. Rd3 {[%clk 0:00:29]}  axb2 {[%clk 0:00:02]} 33. Kxb2 {[%clk 0:00:29]}  Rc4 {[%clk 0:00:01]} 34. Ne2 {[%clk 0:00:27]} 1-0


[Site "https://www.chess.com"]

[Event "Titled Tuesday Blitz March 29 Early 2022"]
[White "parintele_chess"]
[Black "Gracia Alvarez, Gerardo Antonio"]
[BlackFideId "5109124"]
[WhiteElo "2240"]
[BlackElo "2139"]
[Result "0-1"]
[Round "05"]
[TimeControl "180+1"]
[Date "2022.03.30"]
[WhiteClock "0:00:12"]
[BlackClock "0:00:04"]

1. d4 {[%clk 0:02:58]}  Nf6 {[%clk 0:02:59]} 2. Bf4 {[%clk 0:02:57]}  g6 {[%clk 0:02:58]} 3. Nc3 {[%clk 0:02:57]}  d5 {[%clk 0:02:57]} 4. e3 {[%clk 0:02:55]}  Bg7 {[%clk 0:02:58]} 5. h4 {[%clk 0:02:56]}  O-O {[%clk 0:02:52]} 6. h5 {[%clk 0:02:55]}  c5 {[%clk 0:02:52]} 7. Nb5 {[%clk 0:02:51]}  a6 {[%clk 0:02:43]} 8. Nc7 {[%clk 0:02:39]}  Ra7 {[%clk 0:02:39]} 9. hxg6 {[%clk 0:02:33]}  hxg6 {[%clk 0:02:38]} 10. Qf3 {[%clk 0:02:16]}  Nc6 {[%clk 0:02:05]} 11. Qg3 {[%clk 0:02:10]}  Qd7 {[%clk 0:01:52]} 12. Qh4 {[%clk 0:01:58]}  Qg4 {[%clk 0:01:45]} 13. Qh2 {[%clk 0:01:45]}  Qh5 {[%clk 0:01:26]} 14. dxc5 {[%clk 0:01:29]}  Qxh2 {[%clk 0:00:50]} 15. Bxh2 {[%clk 0:01:30]}  Rd8 {[%clk 0:00:38]} 16. O-O-O {[%clk 0:01:27]}  e5 {[%clk 0:00:25]} 17. Nf3 {[%clk 0:01:18]}  Ng4 {[%clk 0:00:25]} 18. Nxd5 {[%clk 0:01:03]}  Nxf2 {[%clk 0:00:20]} 19. Bc4 {[%clk 0:01:02]}  Nxh1 {[%clk 0:00:17]} 20. Rxh1 {[%clk 0:01:03]}  Be6 {[%clk 0:00:16]} 21. e4 {[%clk 0:00:56]}  Na5 {[%clk 0:00:12]} 22. Bd3 {[%clk 0:00:46]}  f6 {[%clk 0:00:08]} 23. b4 {[%clk 0:00:41]}  Nc6 {[%clk 0:00:08]} 24. Bc4 {[%clk 0:00:40]}  Kf7 {[%clk 0:00:08]} 25. Rd1 {[%clk 0:00:38]}  Raa8 {[%clk 0:00:03]} 26. Bg3 {[%clk 0:00:28]}  Nxb4 {[%clk 0:00:03]} 27. a3 {[%clk 0:00:15]}  Bh6+ {[%clk 0:00:04]} 28. Kb2 {[%clk 0:00:14]}  Nc6 {[%clk 0:00:04]} 29. Nb6 {[%clk 0:00:12]}  Rxd1 {[%clk 0:00:04]} 0-1


[Site "https://www.chess.com"]

[Event "Titled Tuesday Blitz March 29 Early 2022"]
[White "Aaditya Dhingra"]
[Black "Tanenbaum, Zachary"]
[WhiteFideId "25678191"]
[BlackFideId "2060850"]
[WhiteElo "1849"]
[BlackElo "2168"]
[Result "0-1"]
[Round "06"]
[TimeControl "180+1"]
[Date "2022.03.30"]
[WhiteClock "0:02:14"]
[BlackClock "0:02:46"]

1. Nf3 {[%clk 0:03:00]}  d5 {[%clk 0:02:59]} 2. c4 {[%clk 0:03:00]}  dxc4 {[%clk 0:03:00]} 3. e3 {[%clk 0:02:56]}  Nf6 {[%clk 0:03:00]} 4. Bxc4 {[%clk 0:02:55]}  e6 {[%clk 0:03:01]} 5. O-O {[%clk 0:02:55]}  a6 {[%clk 0:03:02]} 6. a4 {[%clk 0:02:53]}  c5 {[%clk 0:03:02]} 7. d4 {[%clk 0:02:51]}  Nc6 {[%clk 0:03:02]} 8. dxc5 {[%clk 0:02:46]}  Bxc5 {[%clk 0:02:58]} 9. Nc3 {[%clk 0:02:36]}  Qc7 {[%clk 0:02:50]} 10. e4 {[%clk 0:02:31]}  Ng4 {[%clk 0:02:47]} 11. Qe2 {[%clk 0:02:14]}  Nd4 {[%clk 0:02:46]} 0-1


[Site "https://www.chess.com"]

[Event "Titled Tuesday Blitz March 29 Early 2022"]
[White "Agasarov, Benik"]
[Black "De Souza, Cristiano Gomes"]
[WhiteFideId "13314823"]
[BlackFideId "2151758"]
[WhiteElo "2530"]
[BlackElo "2068"]
[Result "1-0"]
[Round "06"]
[TimeControl "180+1"]
[Date "2022.03.30"]
[WhiteClock "0:02:14"]
[BlackClock "0:02:12"]

1. d4 {[%clk 0:03:00]}  Nf6 {[%clk 0:02:56]} 2. c4 {[%clk 0:03:00]}  g6 {[%clk 0:02:56]} 3. Nc3 {[%clk 0:03:00]}  d6 {[%clk 0:02:56]} 4. e4 {[%clk 0:03:00]}  Bg7 {[%clk 0:02:57]} 5. Nf3 {[%clk 0:03:00]}  O-O {[%clk 0:02:57]} 6. h3 {[%clk 0:03:00]}  Bd7 {[%clk 0:02:55]} 7. e5 {[%clk 0:02:57]}  dxe5 {[%clk 0:02:55]} 8. dxe5 {[%clk 0:02:58]}  Ne8 {[%clk 0:02:55]} 9. Bf4 {[%clk 0:02:58]}  Nc6 {[%clk 0:02:54]} 10. Be2 {[%clk 0:02:55]}  Be6 {[%clk 0:02:53]} 11. O-O {[%clk 0:02:54]}  h6 {[%clk 0:02:51]} 12. Nd5 {[%clk 0:02:48]}  g5 {[%clk 0:02:48]} 13. Bh2 {[%clk 0:02:48]}  a5 {[%clk 0:02:47]} 14. Rc1 {[%clk 0:02:38]}  Nb4 {[%clk 0:02:46]} 15. Nxb4 {[%clk 0:02:27]}  axb4 {[%clk 0:02:45]} 16. Qb3 {[%clk 0:02:22]}  c6 {[%clk 0:02:40]} 17. Qxb4 {[%clk 0:02:20]}  Qc7 {[%clk 0:02:37]} 18. a3 {[%clk 0:02:19]}  g4 {[%clk 0:02:28]} 19. hxg4 {[%clk 0:02:17]}  Bxg4 {[%clk 0:02:27]} 20. e6 {[%clk 0:02:17]}  Nd6 {[%clk 0:02:25]} 21. c5 {[%clk 0:02:14]}  Bxf3 {[%clk 0:02:12]} 22. cxd6 {[%clk 0:02:14]} 1-0


[Site "https://www.chess.com"]

[Event "Titled Tuesday Blitz March 29 Early 2022"]
[White "Andreikin, Dmitry"]
[Black "Perez Ponsa, Federico"]
[WhiteFideId "4158814"]
[BlackFideId "117927"]
[WhiteElo "2736"]
[BlackElo "2672"]
[Result "1-0"]
[Round "06"]
[TimeControl "180+1"]
[Date "2022.03.29"]
[WhiteClock "0:01:23"]
[BlackClock "0:00:18"]

1. d4 {[%clk 0:03:00]}  Nf6 {[%clk 0:03:00]} 2. Nf3 {[%clk 0:03:00]}  g6 {[%clk 0:03:00]} 3. b3 {[%clk 0:03:00]}  Bg7 {[%clk 0:03:00]} 4. Bb2 {[%clk 0:03:00]}  d6 {[%clk 0:03:00]} 5. g3 {[%clk 0:03:00]}  c5 {[%clk 0:02:59]} 6. Bg2 {[%clk 0:02:59]}  cxd4 {[%clk 0:02:58]} 7. Nxd4 {[%clk 0:02:59]}  d5 {[%clk 0:02:58]} 8. O-O {[%clk 0:02:58]}  O-O {[%clk 0:02:58]} 9. c4 {[%clk 0:02:58]}  e5 {[%clk 0:02:53]} 10. Nc2 {[%clk 0:02:58]}  d4 {[%clk 0:02:53]} 11. e3 {[%clk 0:02:54]}  Bg4 {[%clk 0:02:51]} 12. f3 {[%clk 0:02:39]}  Bf5 {[%clk 0:02:51]} 13. exd4 {[%clk 0:02:36]}  Bxc2 {[%clk 0:02:51]} 14. Qxc2 {[%clk 0:02:37]}  exd4 {[%clk 0:02:52]} 15. Na3 {[%clk 0:02:33]}  Nc6 {[%clk 0:02:50]} 16. Rad1 {[%clk 0:02:34]}  a6 {[%clk 0:02:42]} 17. Qd2 {[%clk 0:02:29]}  Qd6 {[%clk 0:02:32]} 18. Nc2 {[%clk 0:02:25]}  Rfd8 {[%clk 0:02:28]} 19. Rfe1 {[%clk 0:02:25]}  d3 {[%clk 0:02:03]} 20. Ne3 {[%clk 0:02:25]}  b5 {[%clk 0:01:51]} 21. f4 {[%clk 0:02:20]}  Rac8 {[%clk 0:01:51]} 22. Kh1 {[%clk 0:02:18]}  h5 {[%clk 0:01:23]} 23. f5 {[%clk 0:01:58]}  h4 {[%clk 0:01:16]} 24. fxg6 {[%clk 0:01:57]}  fxg6 {[%clk 0:01:14]} 25. Nd5 {[%clk 0:01:56]}  hxg3 {[%clk 0:01:09]} 26. c5 {[%clk 0:01:38]}  Qxd5 {[%clk 0:00:50]} 27. Bxd5+ {[%clk 0:01:36]}  Rxd5 {[%clk 0:00:51]} 28. Qg2 {[%clk 0:01:28]}  Rcd8 {[%clk 0:00:41]} 29. Bxf6 {[%clk 0:01:28]}  Bxf6 {[%clk 0:00:40]} 30. Re6 {[%clk 0:01:28]}  Rh5 {[%clk 0:00:20]} 31. Rxf6 {[%clk 0:01:23]}  Rxh2+ {[%clk 0:00:18]} 32. Qxh2 {[%clk 0:01:24]}  gxh2 {[%clk 0:00:18]} 33. Rxg6+ {[%clk 0:01:23]} 1-0


[Site "https://www.chess.com"]

[Event "Titled Tuesday Blitz March 29 Early 2022"]
[White "Ansh M Shah"]
[Black "Kostina, Nadezhda"]
[WhiteFideId "25033379"]
[BlackFideId "4195876"]
[WhiteElo "1819"]
[BlackElo "1982"]
[Result "0-1"]
[Round "06"]
[TimeControl "180+1"]
[Date "2022.03.30"]
[WhiteClock "0:00:10"]
[BlackClock "0:00:10"]

1. d4 {[%clk 0:03:00]}  Nf6 {[%clk 0:02:59]} 2. c4 {[%clk 0:03:00]}  e6 {[%clk 0:02:58]} 3. Nf3 {[%clk 0:02:58]}  Bb4+ {[%clk 0:02:58]} 4. Bd2 {[%clk 0:02:57]}  Qe7 {[%clk 0:02:58]} 5. a3 {[%clk 0:02:56]}  Bxd2+ {[%clk 0:02:56]} 6. Nbxd2 {[%clk 0:02:56]}  d5 {[%clk 0:02:48]} 7. g3 {[%clk 0:02:57]}  O-O {[%clk 0:02:45]} 8. Bg2 {[%clk 0:02:57]}  c6 {[%clk 0:02:31]} 9. O-O {[%clk 0:02:56]}  Nbd7 {[%clk 0:02:28]} 10. Qc2 {[%clk 0:02:53]}  e5 {[%clk 0:02:27]} 11. dxe5 {[%clk 0:02:45]}  Nxe5 {[%clk 0:02:26]} 12. cxd5 {[%clk 0:02:44]}  cxd5 {[%clk 0:02:21]} 13. Nxe5 {[%clk 0:02:43]}  Qxe5 {[%clk 0:02:21]} 14. Nf3 {[%clk 0:02:43]}  Qh5 {[%clk 0:02:18]} 15. Rfd1 {[%clk 0:02:39]}  Bh3 {[%clk 0:02:17]} 16. Qb3 {[%clk 0:02:26]}  Bxg2 {[%clk 0:02:14]} 17. Kxg2 {[%clk 0:02:27]}  Rae8 {[%clk 0:02:10]} 18. Rd2 {[%clk 0:02:21]}  Re7 {[%clk 0:01:58]} 19. Rc1 {[%clk 0:02:13]}  Rfe8 {[%clk 0:01:56]} 20. e3 {[%clk 0:02:10]}  b6 {[%clk 0:01:46]} 21. h3 {[%clk 0:01:39]}  Qf5 {[%clk 0:01:39]} 22. Qc2 {[%clk 0:01:32]}  Ne4 {[%clk 0:01:36]} 23. Rd4 {[%clk 0:01:32]}  Re6 {[%clk 0:01:27]} 24. Nh4 {[%clk 0:01:16]}  Qg5 {[%clk 0:01:18]} 25. Nf3 {[%clk 0:01:02]}  Qh5 {[%clk 0:01:14]} 26. Qd1 {[%clk 0:00:52]}  Rh6 {[%clk 0:01:07]} 27. Nh4 {[%clk 0:00:46]}  Qe5 {[%clk 0:00:57]} 28. Rxd5 {[%clk 0:00:37]}  Qxb2 {[%clk 0:00:50]} 29. Rc2 {[%clk 0:00:34]}  Qxa3 {[%clk 0:00:43]} 30. Rd8 {[%clk 0:00:31]}  Re6 {[%clk 0:00:35]} 31. Rcc8 {[%clk 0:00:19]}  Qf8 {[%clk 0:00:32]} 32. Qd7 {[%clk 0:00:16]}  Nf6 {[%clk 0:00:27]} 33. Rxe8 {[%clk 0:00:13]}  Rxe8 {[%clk 0:00:21]} 34. Rxe8 {[%clk 0:00:11]}  Nxd7 {[%clk 0:00:20]} 35. Rxf8+ {[%clk 0:00:12]}  Kxf8 {[%clk 0:00:20]} 36. Kf3 {[%clk 0:00:12]}  g6 {[%clk 0:00:17]} 37. Ke4 {[%clk 0:00:12]}  Ke7 {[%clk 0:00:18]} 38. Kd5 {[%clk 0:00:13]}  Nc5 {[%clk 0:00:16]} 39. f4 {[%clk 0:00:11]}  a5 {[%clk 0:00:15]} 40. Nf3 {[%clk 0:00:11]}  a4 {[%clk 0:00:15]} 41. Kc4 {[%clk 0:00:09]}  Ne4 {[%clk 0:00:14]} 42. g4 {[%clk 0:00:08]}  Nf2 {[%clk 0:00:13]} 43. Ng5 {[%clk 0:00:08]}  h6 {[%clk 0:00:12]} 44. Nf3 {[%clk 0:00:06]}  Nxh3 {[%clk 0:00:13]} 45. Ne5 {[%clk 0:00:06]}  Nf2 {[%clk 0:00:12]} 46. Kb4 {[%clk 0:00:05]}  Ke6 {[%clk 0:00:08]} 47. Kxa4 {[%clk 0:00:04]}  f6 {[%clk 0:00:08]} 48. Nxg6 {[%clk 0:00:04]}  Nxg4 {[%clk 0:00:07]} 49. Kb5 {[%clk 0:00:04]}  Nxe3 {[%clk 0:00:08]} 50. Kxb6 {[%clk 0:00:04]}  Kf5 {[%clk 0:00:08]} 51. Ne7+ {[%clk 0:00:03]}  Kxf4 {[%clk 0:00:08]} 52. Kc5 {[%clk 0:00:04]}  h5 {[%clk 0:00:08]} 53. Kd4 {[%clk 0:00:05]}  Nf5+ {[%clk 0:00:07]} 54. Nxf5 {[%clk 0:00:04]}  Kxf5 {[%clk 0:00:07]} 55. Ke3 {[%clk 0:00:05]}  Kg4 {[%clk 0:00:08]} 56. Kf2 {[%clk 0:00:05]}  h4 {[%clk 0:00:08]} 57. Kg2 {[%clk 0:00:06]}  h3+ {[%clk 0:00:09]} 58. Kf2 {[%clk 0:00:07]}  f5 {[%clk 0:00:09]} 59. Kg1 {[%clk 0:00:07]}  f4 {[%clk 0:00:10]} 60. Kh1 {[%clk 0:00:08]}  Kg3 {[%clk 0:00:10]} 61. Kg1 {[%clk 0:00:09]}  f3 {[%clk 0:00:10]} 62. Kh1 {[%clk 0:00:09]}  Kh4 {[%clk 0:00:09]} 63. Kg1 {[%clk 0:00:09]}  Kg4 {[%clk 0:00:10]} 64. Kf1 {[%clk 0:00:09]}  Kg3 {[%clk 0:00:10]} 65. Kg1 {[%clk 0:00:09]}  h2+ {[%clk 0:00:10]} 66. Kf1 {[%clk 0:00:10]}  h1=Q# {[%clk 0:00:10]} 0-1


[Site "https://www.chess.com"]

[Event "Titled Tuesday Blitz March 29 Early 2022"]
[White "Babazada, Khazar"]
[Black "Obolentseva, Alexandra"]
[WhiteFideId "13413554"]
[BlackFideId "24153648"]
[WhiteElo "2418"]
[BlackElo "2113"]
[Result "1-0"]
[Round "06"]
[TimeControl "180+1"]
[Date "2022.03.29"]
[WhiteClock "0:01:25"]
[BlackClock "0:00:36"]

1. e4 {[%clk 0:03:00]}  c5 {[%clk 0:02:52]} 2. Nf3 {[%clk 0:02:57]}  d6 {[%clk 0:02:52]} 3. d4 {[%clk 0:02:56]}  cxd4 {[%clk 0:02:53]} 4. Nxd4 {[%clk 0:02:55]}  Nf6 {[%clk 0:02:53]} 5. Nc3 {[%clk 0:02:55]}  a6 {[%clk 0:02:53]} 6. a4 {[%clk 0:02:54]}  e6 {[%clk 0:02:46]} 7. Be2 {[%clk 0:02:53]}  Be7 {[%clk 0:02:42]} 8. O-O {[%clk 0:02:54]}  O-O {[%clk 0:02:42]} 9. Be3 {[%clk 0:02:53]}  Nbd7 {[%clk 0:02:42]} 10. a5 {[%clk 0:02:52]}  Qc7 {[%clk 0:02:33]} 11. f4 {[%clk 0:02:44]}  Rb8 {[%clk 0:02:16]} 12. Qe1 {[%clk 0:02:23]}  Nc5 {[%clk 0:02:15]} 13. Bf3 {[%clk 0:02:22]}  Nfd7 {[%clk 0:02:02]} 14. Qg3 {[%clk 0:02:16]}  Bf6 {[%clk 0:01:57]} 15. Nce2 {[%clk 0:02:03]}  b5 {[%clk 0:01:46]} 16. b4 {[%clk 0:01:55]}  Na4 {[%clk 0:01:38]} 17. Ra3 {[%clk 0:01:55]}  Bb7 {[%clk 0:01:37]} 18. Qh3 {[%clk 0:01:46]}  Rbc8 {[%clk 0:01:29]} 19. Bg4 {[%clk 0:01:41]}  Bxe4 {[%clk 0:01:13]} 20. Bxe6 {[%clk 0:01:41]}  fxe6 {[%clk 0:01:02]} 21. Qxe6+ {[%clk 0:01:42]}  Kh8 {[%clk 0:01:02]} 22. Qxe4 {[%clk 0:01:43]}  Rce8 {[%clk 0:01:02]} 23. Ne6 {[%clk 0:01:43]}  Rf7 {[%clk 0:00:50]} 24. f5 {[%clk 0:01:39]}  Qc4 {[%clk 0:00:49]} 25. Qxc4 {[%clk 0:01:37]}  bxc4 {[%clk 0:00:49]} 26. Rxa4 {[%clk 0:01:38]}  Ne5 {[%clk 0:00:47]} 27. Bd4 {[%clk 0:01:36]}  Nc6 {[%clk 0:00:42]} 28. Bxf6 {[%clk 0:01:35]}  Rxf6 {[%clk 0:00:43]} 29. c3 {[%clk 0:01:33]}  g6 {[%clk 0:00:40]} 30. N2d4 {[%clk 0:01:28]}  Nxd4 {[%clk 0:00:39]} 31. Nxd4 {[%clk 0:01:28]}  gxf5 {[%clk 0:00:38]} 32. Rxf5 {[%clk 0:01:28]}  Re1+ {[%clk 0:00:35]} 33. Kf2 {[%clk 0:01:27]}  Rxf5+ {[%clk 0:00:36]} 34. Nxf5 {[%clk 0:01:28]}  Rc1 {[%clk 0:00:36]} 35. Ra3 {[%clk 0:01:28]}  Rc2+ {[%clk 0:00:36]} 36. Kf3 {[%clk 0:01:28]}  d5 {[%clk 0:00:36]} 37. Ne3 {[%clk 0:01:25]}  Rd2 {[%clk 0:00:36]} 38. Ra1 {[%clk 0:01:25]}  Kg7 {[%clk 0:00:36]} 39. Rd1 {[%clk 0:01:25]} 1-0


[Site "https://www.chess.com"]

[Event "Titled Tuesday Blitz March 29 Early 2022"]
[White "Bintang, Rasyid A. Hidayat"]
[Black "Janaszak, Dawid"]
[WhiteFideId "7105355"]
[BlackFideId "1119206"]
[WhiteElo "2380"]
[BlackElo "2199"]
[Result "1/2-1/2"]
[Round "06"]
[TimeControl "180+1"]
[Date "2022.03.30"]
[WhiteClock "0:00:09"]
[BlackClock "0:00:09"]

1. d4 {[%clk 0:02:55]}  Nf6 {[%clk 0:02:59]} 2. Bf4 {[%clk 0:02:55]}  b6 {[%clk 0:02:53]} 3. e3 {[%clk 0:02:55]}  Bb7 {[%clk 0:02:53]} 4. Nd2 {[%clk 0:02:54]}  e6 {[%clk 0:02:53]} 5. Ngf3 {[%clk 0:02:54]}  Be7 {[%clk 0:02:48]} 6. h3 {[%clk 0:02:54]}  O-O {[%clk 0:02:48]} 7. Bd3 {[%clk 0:02:54]}  c5 {[%clk 0:02:43]} 8. Nc4 {[%clk 0:02:54]}  cxd4 {[%clk 0:02:39]} 9. exd4 {[%clk 0:02:54]}  d6 {[%clk 0:02:40]} 10. c3 {[%clk 0:02:52]}  Nc6 {[%clk 0:02:31]} 11. O-O {[%clk 0:02:52]}  Nd5 {[%clk 0:02:29]} 12. Bh2 {[%clk 0:02:51]}  b5 {[%clk 0:02:26]} 13. Ncd2 {[%clk 0:02:47]}  a6 {[%clk 0:02:23]} 14. a4 {[%clk 0:02:46]}  Qb6 {[%clk 0:02:19]} 15. axb5 {[%clk 0:02:41]}  axb5 {[%clk 0:02:17]} 16. Qe2 {[%clk 0:02:41]}  b4 {[%clk 0:02:11]} 17. c4 {[%clk 0:02:40]}  Nf6 {[%clk 0:02:11]} 18. Nb3 {[%clk 0:02:32]}  Rfe8 {[%clk 0:02:03]} 19. Rfe1 {[%clk 0:02:14]}  Bf8 {[%clk 0:02:02]} 20. Bg3 {[%clk 0:02:11]}  Ne7 {[%clk 0:01:52]} 21. c5 {[%clk 0:02:09]}  dxc5 {[%clk 0:01:47]} 22. dxc5 {[%clk 0:02:10]}  Qd8 {[%clk 0:01:45]} 23. Bb5 {[%clk 0:02:04]}  Bc6 {[%clk 0:01:40]} 24. Rad1 {[%clk 0:01:50]}  Nfd5 {[%clk 0:01:35]} 25. Bd6 {[%clk 0:01:38]}  Qd7 {[%clk 0:01:14]} 26. Ne5 {[%clk 0:01:38]}  Bxb5 {[%clk 0:01:14]} 27. Nxd7 {[%clk 0:01:37]}  Bxe2 {[%clk 0:01:15]} 28. Rxe2 {[%clk 0:01:35]}  Nc6 {[%clk 0:01:07]} 29. Nxf8 {[%clk 0:01:32]}  Rxf8 {[%clk 0:01:06]} 30. Bxf8 {[%clk 0:01:31]}  Kxf8 {[%clk 0:01:07]} 31. Nd4 {[%clk 0:01:27]}  Nce7 {[%clk 0:01:04]} 32. Nb5 {[%clk 0:01:21]}  Ra5 {[%clk 0:00:58]} 33. Nd4 {[%clk 0:01:01]}  Rxc5 {[%clk 0:00:58]} 34. Rc2 {[%clk 0:01:00]}  Ra5 {[%clk 0:00:57]} 35. Nb3 {[%clk 0:00:58]}  Ra2 {[%clk 0:00:54]} 36. Ra1 {[%clk 0:00:58]}  Rxa1+ {[%clk 0:00:53]} 37. Nxa1 {[%clk 0:00:59]}  Ke8 {[%clk 0:00:49]} 38. Rc4 {[%clk 0:00:56]}  Nf5 {[%clk 0:00:47]} 39. Nc2 {[%clk 0:00:53]}  Nd6 {[%clk 0:00:47]} 40. Rh4 {[%clk 0:00:52]}  b3 {[%clk 0:00:46]} 41. Nd4 {[%clk 0:00:51]}  Nc4 {[%clk 0:00:42]} 42. Nxb3 {[%clk 0:00:48]}  Nxb2 {[%clk 0:00:42]} 43. Rxh7 {[%clk 0:00:48]}  g6 {[%clk 0:00:41]} 44. Rh4 {[%clk 0:00:45]}  Nd3 {[%clk 0:00:37]} 45. g3 {[%clk 0:00:41]}  Ke7 {[%clk 0:00:37]} 46. Nd4 {[%clk 0:00:41]}  Ne5 {[%clk 0:00:37]} 47. Kg2 {[%clk 0:00:39]}  Nf6 {[%clk 0:00:35]} 48. Nf3 {[%clk 0:00:39]}  Ned7 {[%clk 0:00:33]} 49. Ra4 {[%clk 0:00:39]}  Nd5 {[%clk 0:00:33]} 50. h4 {[%clk 0:00:37]}  f6 {[%clk 0:00:32]} 51. Ra7 {[%clk 0:00:36]}  Kd6 {[%clk 0:00:33]} 52. Nd4 {[%clk 0:00:35]}  Nc5 {[%clk 0:00:31]} 53. Nb5+ {[%clk 0:00:34]}  Kc6 {[%clk 0:00:31]} 54. Nd4+ {[%clk 0:00:34]}  Kd6 {[%clk 0:00:31]} 55. Rg7 {[%clk 0:00:31]}  Ke5 {[%clk 0:00:26]} 56. Nf3+ {[%clk 0:00:27]}  Kf5 {[%clk 0:00:26]} 57. Nd4+ {[%clk 0:00:27]}  Ke5 {[%clk 0:00:26]} 58. Nc6+ {[%clk 0:00:27]}  Kd6 {[%clk 0:00:26]} 59. Na5 {[%clk 0:00:26]}  Ne7 {[%clk 0:00:18]} 60. Nc4+ {[%clk 0:00:26]}  Kd7 {[%clk 0:00:19]} 61. Nb6+ {[%clk 0:00:26]}  Kd6 {[%clk 0:00:19]} 62. Nc4+ {[%clk 0:00:26]}  Kd7 {[%clk 0:00:20]} 63. g4 {[%clk 0:00:23]}  Nd3 {[%clk 0:00:19]} 64. Kg3 {[%clk 0:00:19]}  e5 {[%clk 0:00:18]} 65. Ne3 {[%clk 0:00:18]}  Nf4 {[%clk 0:00:18]} 66. Ng2 {[%clk 0:00:15]}  Ne2+ {[%clk 0:00:16]} 67. Kf3 {[%clk 0:00:15]}  Nd4+ {[%clk 0:00:14]} 68. Kg3 {[%clk 0:00:15]}  Ke6 {[%clk 0:00:13]} 69. Kh3 {[%clk 0:00:14]}  Nf3 {[%clk 0:00:12]} 70. h5 {[%clk 0:00:13]}  Ng5+ {[%clk 0:00:09]} 71. Kh2 {[%clk 0:00:11]}  gxh5 {[%clk 0:00:08]} 72. gxh5 {[%clk 0:00:12]}  Nf5 {[%clk 0:00:09]} 73. Rg8 {[%clk 0:00:11]}  Nf3+ {[%clk 0:00:09]} 74. Kh3 {[%clk 0:00:10]}  Ng5+ {[%clk 0:00:09]} 75. Kh2 {[%clk 0:00:09]}  Nf3+ {[%clk 0:00:10]} 76. Kh1 {[%clk 0:00:09]}  Kf7 {[%clk 0:00:09]} 77. Ra8 {[%clk 0:00:08]}  Kg7 {[%clk 0:00:09]} 78. Ra3 {[%clk 0:00:08]}  e4 {[%clk 0:00:09]} 79. Nf4 {[%clk 0:00:08]}  Kh6 {[%clk 0:00:09]} 80. Kg2 {[%clk 0:00:09]}  Kg5 {[%clk 0:00:09]} 81. Nh3+ {[%clk 0:00:09]}  Kxh5 {[%clk 0:00:10]} 82. Rxf3 {[%clk 0:00:08]}  exf3+ {[%clk 0:00:09]} 83. Kxf3 {[%clk 0:00:09]}  Nh4+ {[%clk 0:00:10]} 84. Kf4 {[%clk 0:00:09]}  Ng6+ {[%clk 0:00:08]} 85. Kf5 {[%clk 0:00:09]}  Ne5 {[%clk 0:00:09]} 86. Nf4+ {[%clk 0:00:09]}  Kh4 {[%clk 0:00:08]} 87. Kxf6 {[%clk 0:00:08]}  Ng4+ {[%clk 0:00:09]} 88. Kf5 {[%clk 0:00:09]}  Nxf2 {[%clk 0:00:09]} 1/2-1/2


[Site "https://www.chess.com"]